bitfinex/quotes_ETHUSD_20250430
["timestamp","ask_amount","ask_price","bid_price","bid_amount"]
[1746001185984,6.15,1801.1,1801.0,2.64380979]
[1746001191900,6.15,1801.2,1801.0,2.64380979]
[1746001192105,7.56714543,1801.2,1801.0,2.64380979]
[1746001192260,13.11900911,1801.2,1801.0,2.64380979]
[1746001193090,7.56714543,1801.2,1801.0,2.64380979]
[1746001194392,13.11903208,1801.2,1801.0,2.64380979]
[1746001194695,18.67119052,1801.2,1801.0,2.64380979]
[1746001194999,1.86711905,1801.1,1801.0,2.64380979]
[1746001196591,7.56714543,1801.2,1801.0,2.64380979]
[1746001196966,6.15,1801.2,1801.0,2.64380979]
[1746001198103,6.33736256,1801.1,1801.0,2.64380979]
[1746001202101,18.96361863,1801.2,1801.0,2.64380979]
[1746001202306,13.41148143,1801.2,1801.0,2.64380979]
[1746001203706,11.70216256,1801.1,1801.0,2.64380979]
[1746001204003,6.15,1801.1,1801.0,2.64380979]
[1746001204420,11.70216256,1801.1,1801.0,2.64380979]
[1746001204571,13.59852696,1801.1,1801.0,2.64380979]
[1746001204770,14.42722696,1801.1,1801.0,2.64380979]
[1746001205102,5.55269006,1801.0,1800.8,4.714]
[1746001206185,5.55277916,1800.9,1800.8,4.714]
[1746001206391,0.8021,1800.8,1800.5,5.5286]
[1746001206712,0.8021,1800.8,1800.5,4.712]
[1746001206713,11.70344462,1800.7,1800.5,4.712]
[1746001207215,6.15,1800.7,1800.5,4.712]
[1746001209417,6.15,1800.7,1800.6,0.8265]
[1746001210711,6.15,1800.7,1800.5,4.712]
[1746001211007,11.70355241,1800.7,1800.5,4.712]
[1746001211717,17.25721278,1800.7,1800.5,4.712]
[1746001212034,5.55370432,1800.6,1800.5,4.712]
[1746001212385,6.15,1800.6,1800.5,4.712]
[1746001212613,11.70370432,1800.6,1800.5,4.712]
[1746001212795,6.15,1800.6,1800.5,4.712]
[1746001214530,11.70370432,1800.6,1800.5,4.712]
[1746001214826,12.61446031,1800.6,1800.5,4.712]
[1746001216499,12.61446031,1800.6,1800.2,0.8318]
[1746001216708,12.61446031,1800.6,1800.2,5.5438]
[1746001220375,7.06075599,1800.6,1800.2,5.5438]
[1746001223255,6.15,1800.6,1800.2,5.5438]
[1746001225878,6.15,1800.6,1800.4,0.8287]
[1746001226157,6.15,1800.6,1800.5,0.55]
[1746001226825,6.15,1800.6,1800.4,0.8287]
[1746001227157,6.15,1800.7,1800.3,0.7595]
[1746001228044,6.15,1800.7,1800.3,1.30665]
[1746001229158,6.15,1800.7,1800.3,1.36219087]
[1746001229335,6.15,1800.7,1800.4,0.05554082]
[1746001229530,6.15,1800.7,1800.3,1.30665]
[1746001229770,6.15,1800.7,1800.3,1.36218844]
[1746001229950,6.15,1800.7,1800.3,1.30665]
[1746001231028,6.15,1800.7,1800.4,0.05553844]
[1746001231224,6.15,1800.7,1800.5,0.7813]
[1746001231757,6.15,1800.7,1800.6,5.263]
[1746001231950,6.15,1801.0,1800.6,5.86743]
[1746001232257,6.15,1801.0,1800.6,5.92296041]
[1746001232553,6.15,1801.0,1800.6,5.86743]
[1746001232760,6.15,1801.0,1800.6,5.263]
[1746001233362,11.70249474,1801.0,1800.6,5.263]
[1746001233563,6.15,1801.0,1800.6,5.263]
[1746001235262,11.70248369,1801.0,1800.6,5.263]
[1746001235772,11.70248369,1801.0,1800.6,4.713]
[1746001235947,13.67621791,1801.0,1800.6,4.713]
[1746001238373,8.12373422,1801.0,1800.6,4.713]
[1746001239116,13.67624614,1801.0,1800.6,4.713]
[1746001239982,8.12373422,1801.0,1800.6,4.713]
[1746001240141,6.15,1801.0,1800.6,4.713]
[1746001240342,6.15,1801.0,1800.7,1.39182823]
[1746001240679,6.15,1801.0,1800.7,1.3363]
[1746001242350,6.15,1801.0,1800.7,0.55]
[1746001242755,6.15,1801.0,1800.6,5.5453]
[1746001242955,11.70252634,1801.0,1800.6,5.5453]
[1746001243649,6.15,1801.0,1800.6,5.5453]
[1746001243851,6.15,1801.0,1800.6,6.15483]
[1746001244261,6.15,1801.0,1800.7,0.60553256]
[1746001244460,6.15,1801.0,1800.8,0.7902]
[1746001244647,6.32865843,1801.3,1800.8,0.7902]
[1746001244648,6.15,1801.2,1800.8,0.7902]
[1746001246247,0.8331,1801.0,1800.7,0.55]
[1746001246684,0.8331,1801.0,1800.6,6.07643]
[1746001246685,6.38560547,1801.0,1800.6,6.07643]
[1746001247185,0.8331,1801.0,1800.6,6.07643]
[1746001250599,6.15,1800.9,1800.6,6.07643]
[1746001252586,6.15,1800.9,1800.6,5.4669]
[1746001252973,11.70279861,1800.9,1800.6,4.713]
[1746001253271,6.15,1800.9,1800.6,4.713]
[1746001256314,11.7027999,1800.9,1800.6,4.713]
[1746001256456,13.41228589,1800.9,1800.6,4.713]
[1746001256658,15.39209071,1800.9,1800.6,4.713]
[1746001256952,5.55324119,1800.8,1800.6,4.713]
[1746001257286,14.17928189,1800.7,1800.6,4.713]
[1746001257889,14.17928189,1800.7,1800.3,5.5377]
[1746001258082,19.73294082,1800.7,1800.3,5.5377]
[1746001258278,16.15257597,1800.7,1800.3,5.5377]
[1746001258479,21.70623756,1800.7,1800.3,5.5377]
[1746001258680,16.15257597,1800.7,1800.3,5.5377]
[1746001259718,21.7062714,1800.7,1800.3,5.5377]
[1746001260213,5.55370434,1800.6,1800.3,5.5377]
[1746001261440,0.7713,1800.4,1800.2,0.22937447]
[1746001261589,17.18541577,1800.3,1800.2,0.22937447]
[1746001261790,8.55493834,1800.2,1800.1,0.05]
[1746001261981,9.32623834,1800.2,1800.1,0.05]
[1746001265224,15.47623834,1800.2,1800.1,0.05]
[1746001265382,17.57932515,1800.2,1800.1,0.05]
[1746001270490,14.70493834,1800.2,1800.1,0.05]
[1746001284358,15.52163834,1800.2,1800.1,0.05]
[1746001288841,17.23112433,1800.2,1800.1,0.05]
[1746001289744,14.70493834,1800.2,1800.1,0.05]
[1746001293656,9.15,1800.2,1799.7,4.707]
[1746001293971,3.0,1800.0,1799.7,5.1777]
[1746001296592,3.0,1800.0,1799.8,0.743]
[1746001297477,6.15,1799.9,1799.8,0.743]
[1746001297785,6.15,1799.9,1799.7,5.45]
[1746001298476,6.15,1799.9,1799.5,4.702]
[1746001298679,7.62056089,1799.9,1799.5,4.702]
[1746001299281,6.15,1799.9,1799.5,4.702]
[1746001300274,11.70597982,1799.9,1799.5,4.702]
[1746001300579,3.0,1799.8,1799.5,4.702]
[1746001300758,6.15,1799.7,1799.5,4.702]
[1746001305690,6.15,1799.8,1799.5,4.702]
[1746001305845,6.15,1799.8,1799.6,0.4702]
[1746001309168,6.15,1799.9,1799.6,0.4702]
[1746001311152,6.15,1799.9,1799.6,0.49798041]
[1746001311353,6.15,1799.9,1799.6,0.4702]
[1746001312614,6.98821629,1800.7,1799.7,0.55]
[1746001312754,6.9045,1801.1,1800.3,1.70948599]
[1746001312957,7.6045576,1801.1,1800.4,4.73071157]
[1746001313259,3.0,1801.0,1800.4,4.703]
[1746001314603,3.0,1801.0,1800.5,0.02771146]
[1746001314786,7.60455754,1801.1,1800.5,0.02771146]
[1746001314968,3.76045575,1801.0,1800.5,0.02771146]
[1746001315299,3.76045575,1801.0,1800.4,4.7307113]
[1746001315478,3.0,1801.0,1800.4,5.15347383]
[1746001315677,3.0,1801.0,1800.4,5.12576253]
[1746001317968,6.15,1800.9,1800.4,5.12576253]
[1746001320582,6.15,1800.9,1800.5,1.73718799]
[1746001320984,6.15,1800.9,1800.5,1.70948599]
[1746001321376,6.15,1800.9,1800.5,1.73718565]
[1746001321922,6.15,1800.9,1800.5,1.70948599]
[1746001323923,6.15,1801.1,1800.5,1.70948599]
[1746001324816,6.15,1801.1,1800.6,0.02769109]
[1746001325600,6.15,1801.1,1800.5,1.70948599]
[1746001327398,6.15,1801.1,1800.6,0.02769125]
[1746001329625,6.15,1801.1,1800.5,1.70948599]
[1746001330244,6.15,1801.1,1800.6,4.697]
[1746001330389,3.0,1801.0,1800.6,4.697]
[1746001331591,8.55260633,1801.0,1800.6,4.697]
[1746001331925,3.7874,1800.9,1800.6,4.697]
[1746001335262,6.15,1800.8,1800.6,4.697]
[1746001335558,3.0,1800.7,1800.3,4.697]
[1746001335754,6.15,1800.6,1800.3,4.697]
[1746001336537,6.15,1800.6,1800.3,5.1667]
[1746001338961,6.15,1800.6,1800.3,4.697]
[1746001343165,3.0,1800.5,1800.0,23.047]
[1746001343354,9.34101534,1800.5,1800.0,23.047]
[1746001343557,3.787,1800.5,1800.0,23.047]
[1746001347049,9.9716,1800.3,1800.0,23.047]
[1746001351590,9.15,1800.3,1800.0,23.047]
[1746001351741,6.15,1800.3,1800.1,0.0277426]
[1746001352074,6.15,1800.3,1800.1,2.30747426]
[1746001352676,6.15,1800.3,1800.0,6.40648599]
[1746001356254,6.15,1800.4,1800.0,6.40648599]
[1746001356860,6.15,1800.4,1800.2,1.70948599]
[1746001357095,6.15,1800.4,1800.2,1.73721215]
[1746001357480,6.15,1800.4,1800.2,1.70948599]
[1746001358589,6.15,1800.4,1800.2,2.13096311]
[1746001359610,6.15,1800.8,1800.3,0.55]
[1746001359788,6.15,1800.8,1800.4,6.40448599]
[1746001359961,6.15,1800.8,1800.5,0.66815822]
[1746001360682,6.15,1800.8,1800.5,0.6404486]
[1746001361376,6.15,1800.8,1800.5,0.66815847]
[1746001362659,6.15,1800.8,1800.5,0.6404486]
[1746001362859,6.15,1800.8,1800.4,4.695]
[1746001363272,0.8204,1800.7,1800.4,4.695]
[1746001365073,6.15,1800.7,1800.4,4.695]
[1746001368006,0.7915,1800.9,1800.5,0.02771918]
[1746001368311,9.15,1801.0,1800.4,6.40448599]
[1746001368602,9.15,1801.0,1800.5,0.6404486]
[1746001373370,6.15,1801.0,1800.6,0.02770306]
[1746001374512,6.15,1801.0,1800.5,0.6404486]
[1746001375403,6.15,1801.0,1800.6,0.02769543]
[1746001378613,6.15,1801.1,1800.7,0.55]
[1746001378789,9.15,1801.2,1800.8,4.694]
[1746001378984,9.15,1801.2,1800.8,5.2184]
[1746001379178,6.15,1801.4,1800.9,0.55]
[1746001379379,6.15,1801.4,1801.0,0.02766403]
[1746001379678,6.15,1801.4,1800.8,5.62570922]
[1746001379679,6.9072,1801.4,1800.8,5.62570922]
[1746001380513,3.0,1801.3,1800.8,5.2184]
[1746001382528,6.15,1801.2,1800.8,5.2184]
[1746001382928,6.9539,1801.2,1800.5,0.6404486]
[1746001383131,3.0,1801.1,1800.8,4.694]
[1746001383335,0.8039,1801.0,1800.8,4.694]
[1746001384319,3.0,1801.1,1800.8,4.694]
[1746001386317,3.99739114,1801.1,1800.8,4.694]
[1746001386905,3.0,1801.1,1800.8,4.694]
[1746001387114,3.8276,1801.1,1800.8,4.694]
[1746001388631,6.15,1801.0,1800.8,4.694]
[1746001391831,3.8251,1800.9,1800.8,4.694]
[1746001392037,3.8251,1800.9,1800.5,4.691]
[1746001392529,11.77258331,1800.8,1800.5,4.691]
[1746001392738,3.7823,1800.7,1800.5,4.691]
[1746001394211,9.33581781,1800.7,1800.5,4.691]
[1746001395506,9.33581781,1800.7,1800.0,1.70948599]
[1746001395507,3.0,1800.5,1799.9,25.05048599]
[1746001395714,6.15,1800.4,1800.0,4.691]
[1746001395914,6.15,1800.4,1800.1,0.4691]
[1746001398241,6.15,1800.4,1800.2,0.55]
[1746001400157,9.15,1800.5,1800.2,0.55]
[1746001400364,9.15,1800.5,1800.1,0.4691]
[1746001400365,0.8102,1800.4,1800.1,0.4691]
[1746001400523,9.15,1800.5,1800.1,0.4691]
[1746001401382,6.15,1800.5,1800.1,0.4691]
[1746001404668,6.15,1800.5,1800.1,0.49683291]
[1746001408296,6.15,1800.5,1800.2,4.692]
[1746001408604,6.15,1800.5,1800.2,5.21088329]
[1746001410800,6.15,1800.5,1800.2,4.692]
[1746001411099,6.9154,1800.5,1800.2,4.692]
[1746001412801,6.15,1800.5,1800.2,4.692]
[1746001413005,6.15,1800.5,1800.3,0.02772605]
[1746001413293,6.15,1800.7,1800.2,4.71972374]
[1746001413461,6.15,1800.7,1800.3,0.47197237]
[1746001413662,6.15,1800.7,1800.4,0.02771881]
[1746001414798,6.15,1800.7,1800.3,0.47197237]
[1746001415277,6.15,1800.7,1800.4,0.02771159]
[1746001415479,6.15,1800.7,1800.4,0.55]
[1746001416081,6.15,1800.8,1800.5,0.02770715]
[1746001416400,6.15,1800.8,1800.6,4.692]
[1746001416607,6.15,1800.8,1800.6,5.16397072]
[1746001418789,6.15,1800.8,1800.6,5.19166917]
[1746001418982,6.15,1800.8,1800.6,5.16397072]
[1746001420808,0.7696,1800.9,1800.6,5.16397072]
[1746001421006,6.9196,1800.9,1800.6,4.692]
[1746001426813,6.15,1800.9,1800.6,4.692]
[1746001432426,6.15,1801.0,1800.6,4.692]
[1746001440035,6.15,1801.0,1800.7,4.688]
[1746001445762,0.8206,1800.9,1800.7,4.688]
[1746001446865,6.15,1801.0,1800.7,4.688]
[1746001451594,1.70948599,1800.8,1800.7,4.688]
[1746001451736,3.0,1800.6,1800.4,4.684]
[1746001452079,3.0,1800.6,1800.1,4.684]
[1746001452080,9.33401277,1800.5,1800.1,4.684]
[1746001452236,16.41394334,1800.4,1800.1,4.684]
[1746001452434,0.78,1800.3,1800.1,4.684]
[1746001453148,6.33474066,1800.3,1800.1,4.684]
[1746001453478,10.85948599,1800.2,1799.8,4.684]
[1746001453647,16.41442433,1800.2,1799.8,4.684]
[1746001454072,10.85948599,1800.2,1799.8,4.684]
[1746001454376,16.41453984,1800.2,1799.8,4.684]
[1746001454545,0.7526,1800.1,1799.8,4.684]
[1746001454729,6.15,1800.0,1799.8,4.684]
[1746001455768,6.15,1800.0,1799.8,5.1524]
[1746001457439,6.15,1800.0,1799.8,4.684]
[1746001458974,6.15,1800.0,1799.6,0.4702]
[1746001458975,0.8107,1799.8,1799.5,4.685]
[1746001462870,3.0,1799.9,1799.5,4.685]
[1746001464678,9.15,1799.9,1799.5,4.685]
[1746001473457,0.7541,1799.8,1799.5,4.685]
[1746001473658,0.7541,1799.8,1799.5,6.9873]
[1746001474696,0.7541,1799.8,1799.5,4.685]
[1746001476396,6.9041,1799.8,1799.5,4.685]
[1746001477393,6.15,1799.8,1799.5,4.685]
[1746001480700,6.9121,1799.8,1799.5,4.685]
[1746001494421,0.31189217,1799.7,1799.5,4.685]
[1746001494589,6.46189217,1799.7,1799.5,4.685]
[1746001494788,6.15,1799.7,1799.5,4.685]
[1746001498635,6.15,1799.7,1799.4,4.682]
[1746001498782,6.15,1799.7,1799.4,5.19286415]
[1746001505729,6.15,1799.8,1799.4,5.19286415]
[1746001509759,6.9635,1799.8,1799.4,4.682]
[1746001510061,12.52006655,1799.7,1799.4,4.682]
[1746001511054,0.31178077,1799.6,1799.4,4.682]
[1746001511547,0.7523,1799.3,1799.0,4.683]
[1746001511750,17.16959873,1799.3,1798.9,18.348]
[1746001512169,0.31178077,1799.2,1798.9,23.031]
[1746001513067,9.9023,1799.3,1798.9,23.031]
[1746001515835,0.7778,1799.2,1798.9,23.031]
[1746001517478,6.15,1799.1,1798.9,23.031]
[1746001517657,3.0,1799.1,1798.9,23.031]
[1746001517860,9.15,1799.0,1798.9,4.683]
[1746001518051,11.4445602,1799.0,1798.9,4.683]
[1746001518242,11.4445602,1799.0,1798.6,4.678]
[1746001519176,9.9301,1799.0,1798.6,4.678]
[1746001519382,9.15,1799.0,1798.6,4.678]
[1746001522393,9.15,1799.0,1798.6,4.678]
[1746001526403,3.0,1798.9,1798.6,4.678]
[1746001526555,0.7991,1798.8,1798.6,4.678]
[1746001526954,6.9491,1798.8,1798.6,4.678]
[1746001527360,7.94401,1798.8,1798.6,4.678]
[1746001529100,0.7779,1798.7,1798.6,4.678]
[1746001532140,6.9279,1798.7,1798.6,4.678]
[1746001533413,11.63738599,1798.7,1798.2,4.679]
[1746001533729,0.8302,1798.4,1798.2,4.679]
[1746001534312,3.7965,1798.5,1798.2,4.679]
[1746001535315,9.35679807,1798.5,1798.2,4.679]
[1746001535805,3.7965,1798.5,1798.2,4.679]
[1746001538022,6.15,1798.4,1798.2,4.679]
[1746001543804,9.9465,1798.5,1798.2,4.679]
[1746001545042,15.50677751,1798.5,1798.2,4.679]
[1746001545241,0.792,1798.4,1798.2,4.679]
[1746001549740,6.942,1798.4,1798.2,4.679]
[1746001553846,6.15,1798.4,1798.2,4.679]
[1746001563562,6.15,1798.4,1798.1,4.676]
[1746001564365,6.15,1798.4,1798.1,5.1436]
[1746001565161,6.15,1798.4,1798.1,0.4676]
[1746001565368,6.15,1798.4,1798.1,4.676]
[1746001567669,6.15,1798.4,1797.9,1.70948599]
[1746001567970,6.15,1798.4,1798.1,0.55]
[1746001571272,6.15,1798.4,1798.3,0.55]
[1746001571641,6.15,1798.4,1798.1,0.55]
[1746001571843,6.15,1798.4,1798.1,1.0726]
[1746001572165,0.8178,1798.3,1798.1,0.55]
[1746001572368,0.8178,1798.3,1798.1,4.676]
[1746001573277,6.9723,1798.4,1798.1,4.676]
[1746001574476,6.15,1798.4,1798.1,4.676]
[1746001575348,6.15,1798.4,1798.2,0.55]
[1746001576277,6.9723,1798.5,1798.2,0.55]
[1746001576644,0.3117397,1798.4,1798.2,0.55]
[1746001577882,6.9723,1798.5,1798.2,0.55]
[1746001579487,0.31190261,1798.4,1798.2,0.55]
[1746001579659,0.8055,1798.3,1798.1,4.676]
[1746001582577,0.8055,1798.3,1798.1,4.671]
[1746001583957,0.8055,1798.3,1797.9,0.55]
[1746001584157,0.8055,1798.3,1798.0,4.671]
[1746001584895,0.31183417,1798.2,1798.0,4.671]
[1746001586367,0.8055,1798.3,1798.0,4.671]
[1746001586566,1.19300192,1798.3,1798.0,4.671]
[1746001587487,0.31181362,1798.2,1798.0,4.671]
[1746001587994,3.793,1798.1,1798.0,4.671]
[1746001588302,9.943,1798.1,1797.9,4.671]
[1746001588505,0.9943,1798.0,1797.9,4.671]
[1746001588859,1.30607399,1798.0,1797.9,4.671]
[1746001589059,1.30607399,1798.0,1797.5,20.61948599]
[1746001589260,3.7748,1797.9,1797.6,4.671]
[1746001589492,4.08656406,1797.9,1797.6,4.671]
[1746001589736,3.7748,1797.9,1797.5,23.031]
[1746001589864,0.31174823,1797.8,1797.5,23.031]
[1746001590064,3.7748,1797.9,1797.5,23.031]
[1746001590464,0.7641,1797.7,1797.5,23.031]
[1746001590800,6.9141,1797.7,1797.5,4.671]
[1746001591296,6.9141,1797.7,1797.4,4.671]
[1746001592700,6.9141,1797.7,1797.4,4.672]
[1746001594092,6.9141,1797.7,1797.3,0.55]
[1746001594296,6.9141,1797.7,1797.4,4.672]
[1746001595068,7.60551,1797.7,1797.4,4.672]
[1746001595796,0.792,1797.6,1797.4,4.672]
[1746001596196,0.792,1797.6,1796.9,1.70948599]
[1746001596501,6.15,1797.5,1797.2,4.672]
[1746001597080,6.15,1797.5,1797.3,0.55]
[1746001597274,6.15,1797.7,1797.3,0.55]
[1746001600195,6.8401,1797.7,1797.3,0.55]
[1746001602436,6.15,1797.7,1797.3,0.55]
[1746001616773,6.15,1797.7,1797.4,4.668]
[1746001617567,6.15,1797.7,1797.2,0.55]
[1746001617737,6.15,1797.7,1797.4,4.668]
[1746001622779,6.15,1797.7,1797.2,0.55]
[1746001622780,3.87614442,1797.6,1797.2,4.668]
[1746001622981,0.7832,1797.5,1797.2,4.668]
[1746001625986,6.15,1797.4,1797.2,4.668]
[1746001629946,6.15,1797.4,1797.3,0.55]
[1746001631510,6.15,1797.4,1797.2,4.668]
[1746001631899,6.9622,1797.6,1797.2,4.668]
[1746001632102,7.65842,1797.6,1797.2,4.668]
[1746001633752,6.9622,1797.6,1797.3,4.668]
[1746001647960,6.9622,1797.6,1797.1,0.55]
[1746001648131,6.9622,1797.6,1797.2,4.663]
[1746001648788,0.31200028,1797.5,1797.2,4.663]
[1746001649582,6.15,1797.5,1797.2,4.663]
[1746001649785,6.84622,1797.5,1797.2,4.663]
[1746001650280,0.8194,1797.4,1797.2,4.663]
[1746001655414,6.9694,1797.4,1797.2,4.663]
[1746001655686,3.0,1797.3,1796.9,5.213]
[1746001655846,6.15,1797.2,1796.9,5.213]
[1746001656682,6.15,1797.2,1796.9,6.92248599]
[1746001660183,6.15,1797.2,1796.9,5.213]
[1746001660349,7.8519,1797.2,1796.9,5.213]
[1746001662081,6.9369,1797.2,1796.9,5.213]
[1746001664755,6.15,1797.2,1796.9,5.213]
[1746001664956,6.15,1797.2,1797.0,2.25948599]
[1746001665370,6.15,1797.2,1796.9,4.663]
[1746001667100,9.9323,1797.3,1796.9,4.663]
[1746001667425,6.9323,1797.3,1796.9,4.663]
[1746001667581,6.9323,1797.3,1796.9,5.39907903]
[1746001668392,6.15,1797.3,1797.0,2.25948599]
[1746001668607,6.15,1797.3,1797.0,2.28746307]
[1746001668821,6.15,1797.3,1797.2,2.25948599]
[1746001670013,0.7837,1797.7,1797.2,2.25948599]
[1746001670303,6.4618288,1797.6,1797.2,2.25948599]
[1746001671324,6.15,1797.6,1797.2,2.25948599]
[1746001673227,6.15,1797.6,1797.3,0.55]
[1746001674722,6.15,1797.6,1797.3,0.5779568]
[1746001675025,6.15,1797.6,1797.3,0.55]
[1746001675200,6.15,1797.6,1797.3,0.57795688]
[1746001675526,6.15,1797.6,1797.4,0.5]
[1746001675927,6.9471,1797.7,1797.4,0.5]
[1746001679398,6.9471,1797.7,1797.6,2.25948599]
[1746001679399,6.15,1797.7,1797.6,2.25948599]
[1746001679725,7.03223226,1798.1,1797.6,2.25948599]
[1746001680821,6.9627,1798.1,1797.6,2.25948599]
[1746001684801,6.15,1798.1,1797.6,0.55]
[1746001685101,6.15,1798.1,1797.4,0.5]
[1746001685102,3.7556,1797.9,1797.4,0.5]
[1746001685326,0.06953781,1797.8,1797.4,0.5]
[1746001685529,0.7556,1797.7,1797.4,0.5]
[1746001685737,6.15,1797.6,1797.4,0.5]
[1746001686121,6.15,1797.6,1797.4,1.0158]
[1746001689110,6.15,1797.6,1797.4,0.5]
[1746001690607,0.8118,1797.7,1797.4,0.5]
[1746001691751,6.15,1797.8,1797.4,0.5]
[1746001691915,6.9583,1797.8,1797.4,0.5]
[1746001693210,6.15,1797.8,1797.5,0.55]
[1746001693609,6.15,1797.8,1797.5,2.25948599]
[1746001694221,6.15,1797.8,1797.5,2.53822859]
[1746001696553,6.15,1797.9,1797.5,2.53822859]
[1746001700153,6.15,1797.9,1797.5,0.8287426]
[1746001700362,6.15,1797.9,1797.5,0.55]
[1746001703222,6.21953533,1797.9,1797.4,0.5]
[1746001704860,0.31225144,1797.8,1797.4,0.5]
[1746001705030,0.782,1797.7,1797.4,0.5]
[1746001706947,0.782,1797.7,1797.3,4.658]
[1746001707268,0.782,1797.7,1797.0,3.76261284]
[1746001707269,3.86404869,1797.6,1797.0,7.86561284]
[1746001707569,6.46201179,1797.5,1797.1,1.70948599]
[1746001708262,6.15,1797.5,1797.1,1.70948599]
[1746001708554,6.15,1797.5,1797.4,0.55]
[1746001708767,6.21953801,1797.9,1797.4,0.55]
[1746001708967,6.15,1797.9,1797.4,5.203]
[1746001709270,0.31197317,1797.8,1797.4,5.203]
[1746001709472,0.31197317,1797.8,1797.4,5.8942486]
[1746001709977,6.15,1797.9,1797.4,5.8942486]
[1746001710171,6.21953722,1797.9,1797.4,5.203]
[1746001710576,0.8332,1797.8,1797.4,5.203]
[1746001710789,0.8332,1797.8,1797.4,4.653]
[1746001710965,3.8332,1797.8,1797.4,4.653]
[1746001711339,3.0,1797.8,1797.4,4.653]
[1746001711643,3.0,1797.8,1797.4,5.2892486]
[1746001712344,3.0,1797.8,1797.5,0.5]
[1746001714140,6.15,1797.7,1797.5,0.5]
[1746001714855,7.27061656,1798.2,1797.6,0.55]
[1746001714856,6.15,1798.1,1797.6,0.55]
[1746001715262,0.31217034,1798.0,1797.6,0.55]
[1746001715965,6.15,1798.1,1797.6,0.55]
[1746001716171,6.85237279,1798.1,1797.6,0.55]
[1746001717665,0.31211951,1798.0,1797.6,0.55]
[1746001717869,0.31211951,1798.0,1797.9,2.25948599]
[1746001718071,0.31211951,1798.0,1797.9,0.55]
[1746001718682,6.15,1798.1,1797.9,0.55]
[1746001721700,6.15,1798.1,1797.9,1.0703]
[1746001722697,6.15,1798.2,1797.9,1.0703]
[1746001723591,0.06951944,1798.5,1797.9,2.77978599]
[1746001723895,0.87021944,1798.5,1797.9,2.77978599]
[1746001725499,0.87021944,1798.5,1797.9,2.8076963]
[1746001725798,1.87224138,1798.5,1797.9,2.77978599]
[1746001726396,1.87224138,1798.5,1797.9,2.80769461]
[1746001726898,0.87021944,1798.5,1798.0,0.55]
[1746001727098,0.8007,1798.5,1798.0,0.55]
[1746001728484,9.97431706,1798.6,1798.0,0.55]
[1746001731621,6.21951706,1798.6,1798.1,1.70948599]
[1746001731916,6.15,1798.6,1798.1,1.70948599]
[1746001732082,6.15,1798.6,1798.1,1.73737237]
[1746001732289,6.15,1798.6,1798.2,0.55]
[1746001742208,6.77195007,1798.6,1798.2,0.55]
[1746001742820,7.56065007,1798.6,1798.0,0.55]
[1746001743187,7.63016271,1798.6,1798.0,0.55]
[1746001743388,0.31156476,1798.5,1798.0,0.55]
[1746001744797,7.63016271,1798.6,1798.0,0.55]
[1746001745398,7.63016271,1798.6,1798.0,0.57790088]
[1746001745721,7.63016271,1798.6,1798.0,0.85866957]
[1746001746226,7.63016271,1798.6,1798.0,0.83076869]
[1746001746742,6.21951264,1798.6,1798.2,0.55]
[1746001746905,6.15,1798.6,1798.2,0.55]
[1746001749434,3.0,1798.6,1798.2,0.55]
[1746001749615,3.0,1798.6,1798.2,0.5778882]
[1746001750507,3.0,1798.6,1798.2,0.55]
[1746001751338,3.915,1798.6,1798.1,0.55]
[1746001751542,0.3121584,1798.5,1798.1,0.55]
[1746001752802,0.3121584,1798.4,1798.1,0.55]
[1746001753635,3.0,1798.6,1798.1,0.55]
[1746001753937,6.15,1798.7,1798.1,2.25948599]
[1746001754307,6.9004,1798.7,1798.1,2.97831146]
[1746001754708,0.31222398,1798.6,1798.1,2.97831146]
[1746001755217,6.46222398,1798.6,1798.1,2.97831146]
[1746001755705,6.15,1798.6,1798.1,2.97831146]
[1746001756827,6.15,1798.6,1798.1,3.00620195]
[1746001757037,6.15,1798.6,1798.2,0.30062019]
[1746001758034,6.15,1798.6,1798.2,0.32850787]
[1746001758244,6.15,1798.6,1798.2,0.30062019]
[1746001760636,6.15,1798.6,1798.2,0.32850793]
[1746001760837,6.15,1798.8,1798.5,2.25948599]
[1746001761035,5.4173,1799.2,1798.5,2.25948599]
[1746001761036,3.0,1799.0,1798.5,2.25948599]
[1746001761432,0.31231739,1798.9,1798.5,2.25948599]
[1746001761812,0.31231739,1798.9,1798.5,2.94993459]
[1746001762643,6.21949501,1799.1,1798.5,2.94993459]
[1746001763844,0.31207205,1799.0,1798.5,2.94993459]
[1746001764744,0.31207205,1798.9,1798.5,2.94993459]
[1746001764945,0.31207205,1798.9,1798.6,0.29499346]
[1746001765553,6.21949501,1799.1,1798.6,0.29499346]
[1746001765854,6.21949501,1799.1,1798.5,2.94993459]
[1746001766142,0.31185927,1799.0,1798.5,0.55]
[1746001766330,1.06325927,1799.0,1798.5,0.55]
[1746001766753,1.06325927,1799.0,1798.4,4.645]
[1746001767058,6.46185927,1798.9,1798.4,4.645]